bitfinex-derivatives/quotes_ETHF0:USTF0_20250126
["timestamp","ask_amount","ask_price","bid_price","bid_amount"]
[1737895571177,0.00609071,3306.3,3306.2,0.5268]
[1737895571378,0.61109071,3306.3,3306.1,3.2078]
[1737895571572,0.60501,3306.2,3306.1,3.2078]
[1737895571975,0.60505,3306.0,3305.9,0.5152]
[1737895572179,3.71499071,3306.3,3305.7,3.2078]
[1737895572180,0.9878,3306.1,3305.7,3.2078]
[1737895572476,0.60508,3305.9,3305.7,3.2078]
[1737895572878,0.60507,3305.9,3305.7,3.2078]
[1737895573778,0.9878,3306.1,3305.7,3.2078]
[1737895573975,0.60507,3305.9,3305.7,3.2078]
[1737895577082,0.60508,3305.9,3305.7,3.2078]
[1737895577472,0.9878,3306.1,3305.7,3.2078]
[1737895577781,1.13038,3305.8,3305.7,3.2078]
[1737895578676,1.13038,3305.8,3305.6,0.60512]
[1737895578875,1.13038,3305.8,3305.5,1.09883]
[1737895579776,0.60511,3305.7,3305.5,0.4937]
[1737895580080,1.12601,3305.7,3305.5,0.4937]
[1737895580770,0.5209,3305.7,3305.5,1.09883]
[1737895581379,1.12601,3305.7,3305.5,0.4937]
[1737895582396,0.5209,3305.7,3305.5,0.4937]
[1737895582575,0.5209,3305.7,3305.5,1.09883]
[1737895583083,0.60509,3305.8,3305.5,1.09883]
[1737895585081,0.60511,3305.7,3305.5,0.4937]
[1737895586485,0.5155,3305.6,3305.5,0.4937]
[1737895586682,1.0183,3305.6,3305.5,0.4937]
[1737895587485,1.0183,3305.6,3305.5,1.09884]
[1737895587886,1.0183,3305.6,3305.5,0.4937]
[1737895588277,0.60509,3305.8,3305.5,1.09884]
[1737895588479,0.00453611,3306.3,3306.2,0.60501]
[1737895588684,0.00453611,3306.3,3306.2,3.81281]
[1737895588882,0.95303374,3307.2,3306.7,0.6049]
[1737895589080,0.60483,3307.2,3306.8,1.0242]
[1737895589389,0.60485,3307.1,3306.8,1.0242]
[1737895590286,0.60485,3307.1,3306.8,1.6291]
[1737895591284,0.60488,3306.9,3306.6,3.21233611]
[1737895591493,0.60492,3306.7,3306.6,3.21233611]
[1737895592783,0.477,3306.8,3306.6,3.21233611]
[1737895593089,1.08191,3306.8,3306.6,3.21233611]
[1737895593688,0.477,3306.8,3306.6,3.81725611]
[1737895596098,1.0819,3306.8,3306.6,3.21233611]
[1737895596395,0.477,3306.8,3306.6,3.81726611]
[1737895597599,0.477,3306.8,3306.6,0.60946611]
[1737895605301,3.2078,3307.1,3306.6,0.00453611]
[1737895605592,3.2078,3307.1,3306.9,0.60487]
[1737895605792,3.2078,3307.1,3307.0,0.4925]
[1737895606187,3.2078,3307.1,3307.0,1.09736]
[1737895606795,4.10963,3307.2,3307.0,1.09736]
[1737895606996,2.979,3307.2,3307.1,0.60484]
[1737895607199,2.979,3307.2,3307.1,1.10544]
[1737895608805,3.58383,3307.2,3307.1,0.5006]
[1737895609004,0.60484,3307.1,3307.0,0.60485]
[1737895615616,0.60487,3307.0,3306.9,0.60487]
[1737895615809,0.60485,3307.1,3307.0,0.60486]
[1737895618010,0.5204,3307.2,3306.8,1.0357]
[1737895618207,0.60487,3307.0,3306.9,0.60487]
[1737895618920,0.5204,3307.2,3306.8,1.0357]
[1737895619121,0.60486,3307.1,3306.9,0.60487]
[1737895619821,0.5204,3307.2,3306.9,0.60487]
[1737895620020,0.60486,3307.0,3306.9,0.60487]
[1737895622423,0.5204,3307.2,3306.9,0.60487]
[1737895622624,0.60486,3307.1,3306.9,0.60487]
[1737895622825,0.60486,3307.1,3306.8,1.0357]
[1737895623324,0.60486,3307.1,3307.0,0.60486]
[1737895623822,0.60483,3307.2,3307.1,0.60483]
[1737895624120,0.60483,3307.2,3307.1,0.60484]
[1737895624521,0.00297732,3307.3,3306.8,1.0357]
[1737895624821,0.60488,3306.9,3306.8,1.0357]
[1737895626121,0.96064908,3306.9,3306.8,1.0357]
[1737895627524,0.60492,3306.7,3306.6,3.21233611]
[1737895627723,0.60492,3306.7,3306.6,0.00453611]
[1737895627924,0.98310073,3306.7,3306.6,0.00453611]
[1737895633124,5.37818073,3306.7,3306.0,0.5113]
[1737895633332,0.60503,3306.1,3306.0,0.5113]
[1737895635230,0.507,3306.3,3305.7,0.00453611]
[1737895635429,0.60508,3305.8,3305.7,0.00453611]
[1737895645933,6.1868,3306.1,3305.7,0.00453611]
[1737895646130,2.979,3306.1,3306.0,0.60505]
[1737895647342,3.2078,3306.6,3305.8,40.8]
[1737895647542,3.2078,3306.6,3306.4,0.60496]
[1737895647739,3.2078,3306.6,3306.5,1.5029]
[1737895648635,3.2078,3306.6,3306.5,2.10785]
[1737895649135,3.2078,3306.6,3306.5,1.5029]
[1737895650340,0.60492,3306.7,3306.5,1.5029]
[1737895650845,3.2078,3307.0,3306.5,1.5029]
[1737895651141,3.81267,3307.0,3306.7,0.60491]
[1737895651341,3.2078,3307.0,3306.8,0.6049]
[1737895651733,3.81266,3307.0,3306.8,0.6049]
[1737895651940,0.60489,3306.9,3306.5,4.7107]
[1737895652240,3.2078,3307.0,3306.5,4.7107]
[1737895652439,0.60489,3306.9,3306.7,0.60492]
[1737895653044,0.60489,3306.9,3306.5,4.7107]
[1737895653243,0.60489,3306.9,3306.7,0.60491]
[1737895653445,0.60489,3306.9,3306.7,0.60316885]
[1737895653939,0.60489,3306.9,3306.5,4.7107]
[1737895654243,0.60489,3306.9,3306.7,0.60491]
[1737895655145,0.6049,3306.8,3306.7,0.60491]
[1737895657145,0.6049,3306.8,3306.7,0.60492]
[1737895660348,0.60494,3306.6,3306.5,4.7107]
[1737895661147,0.60494,3306.6,3306.5,1.0249]
[1737895661335,3.2078,3306.6,3306.1,3.2078]
[1737895661540,0.60499,3306.3,3306.2,0.49]
[1737895664051,3.2078,3306.6,3305.7,40.80453611]
[1737895664052,1.51241,3306.5,3305.7,3.21233611]
[1737895664246,0.60506,3305.9,3305.8,0.5023]
[1737895668546,0.5207,3306.1,3305.7,0.00453611]
[1737895668754,1.08198,3305.8,3305.7,0.00453611]
[1737895670155,0.60508,3305.8,3305.7,0.00453611]
[1737895673360,0.5207,3306.1,3305.7,0.00453611]
[1737895673556,1.12574,3306.1,3305.7,0.60962611]
[1737895674163,0.60506,3306.0,3305.8,0.5116]
[1737895674357,0.60506,3305.9,3305.8,0.5116]
[1737895676958,0.60508,3305.8,3305.7,0.00453611]
[1737895677160,1.11278,3305.8,3305.7,0.00453611]
[1737895682566,0.60504,3306.1,3305.9,0.60506]
[1737895682868,0.60504,3306.1,3306.0,1.5317]
[1737895685062,3.8128,3306.3,3306.2,0.60501]
[1737895685469,3.8128,3306.3,3306.1,0.60502]
[1737895687072,3.2078,3306.3,3306.1,0.60502]
[1737895687271,3.2078,3306.3,3306.1,0.60503]
[1737895688458,3.2078,3306.3,3306.0,1.5317]
[1737895688663,3.2078,3306.7,3306.0,1.5317]
[1737895688872,0.60495,3306.6,3306.3,0.60498]
[1737895689665,0.60495,3306.6,3306.4,0.60497]
[1737895689865,3.81273,3306.7,3306.5,0.5228]
[1737895690074,3.81273,3306.7,3306.6,1.0323]
[1737895693276,3.81273,3306.7,3306.6,0.5162]
[1737895693576,0.60494,3306.6,3306.5,0.5228]
[1737895693779,1.12454,3306.6,3306.5,0.5228]
[1737895694181,0.60501,3306.2,3306.1,1.0149]
[1737895694367,0.60501,3306.2,3306.1,1.5256]
[1737895696671,0.5196,3306.6,3306.1,1.5256]
[1737895696876,0.605,3306.3,3306.1,1.5256]
[1737895697077,0.5196,3306.6,3306.1,2.13062]
[1737895697078,0.60498,3306.4,3306.1,2.13062]
[1737895697278,0.60497,3306.5,3306.1,2.13062]
[1737895697578,0.60497,3306.4,3306.2,0.60501]
[1737895699581,3.7196,3306.8,3306.1,4.7334]
[1737895699782,0.60494,3306.6,3306.4,0.60496]
[1737895700079,3.2078,3306.8,3306.6,0.60492]
[1737895700281,3.2078,3306.8,3306.7,1.4985]
[1737895702490,3.2078,3306.8,3306.7,2.10342]
[1737895702694,3.2078,3306.8,3306.7,1.4985]
[1737895702889,3.2078,3306.8,3306.3,0.60498]
[1737895703084,0.60496,3306.5,3306.3,0.60498]
[1737895704193,0.60494,3306.6,3306.3,0.60498]
[1737895706088,0.60494,3306.6,3306.3,3.81278]
[1737895706285,0.60494,3306.6,3306.3,3.2078]
[1737895706495,0.60494,3306.6,3306.4,0.60497]
[1737895706696,0.60494,3306.6,3306.3,3.81278]
[1737895708198,0.9857,3306.7,3306.3,3.81278]
[1737895708501,0.60497,3306.4,3306.2,0.9963]
[1737895708792,0.60499,3306.3,3306.2,0.5078]
[1737895712893,0.5261,3306.6,3306.2,0.5078]
[1737895713099,0.60499,3306.4,3306.2,0.5078]
[1737895714301,0.60499,3306.3,3306.2,0.5078]
[1737895715401,0.60498,3306.4,3306.2,0.5078]
[1737895716101,0.5261,3306.6,3306.2,0.5078]
[1737895716502,0.60499,3306.3,3306.2,0.5078]
[1737895717194,0.5261,3306.6,3306.2,0.5078]
[1737895717397,0.60499,3306.3,3306.2,0.5078]
[1737895719501,0.5261,3306.6,3306.0,0.60503]
[1737895719705,1.60591,3306.2,3306.0,0.60503]
[1737895720204,0.60505,3306.0,3305.9,0.5243]
[1737895720501,0.60508,3305.8,3305.7,0.00453611]
[1737895726000,0.95190628,3305.8,3305.7,0.00453611]
[1737895726197,0.60508,3305.8,3305.7,0.00453611]
[1737895726397,0.95179309,3305.8,3305.7,0.00453611]
[1737895727093,0.60508,3305.8,3305.7,0.00453611]
[1737895727297,0.95166551,3305.8,3305.7,0.00453611]
[1737895727499,0.60508,3305.8,3305.7,0.00453611]
[1737895732103,3.81287,3305.9,3305.8,0.60508]
[1737895732411,3.2078,3305.9,3305.8,2.14588]
[1737895732712,3.81286,3305.9,3305.8,2.14588]
[1737895735015,0.60506,3305.9,3305.8,2.14588]
[1737895737613,2.979,3306.3,3305.8,1.5408]
[1737895738013,0.60506,3305.9,3305.8,1.5408]
[1737895741818,0.60506,3305.9,3305.8,2.14588]
[1737895742321,4.72015,3306.6,3306.1,0.60503]
[1737895742518,0.60501,3306.2,3306.1,0.60503]
[1737895742721,4.72015,3306.6,3305.8,1.5408]
[1737895742918,0.60506,3305.9,3305.8,1.5408]
[1737895744225,0.60508,3305.8,3305.7,0.00453611]
[1737895751418,3.81288,3305.8,3305.7,0.00453611]
[1737895756433,0.60517,3305.3,3305.2,0.5085]
[1737895756634,3.2078,3305.4,3304.7,0.9922]
[1737895756827,3.2078,3305.4,3304.7,0.499]
[1737895756828,0.60527,3304.8,3304.7,0.499]
[1737895757335,3.2078,3304.9,3304.4,0.5105]
[1737895757631,0.60532,3304.5,3304.4,0.51503611]
[1737895766155,0.60527,3304.8,3304.7,0.60527]
[1737895766358,0.60527,3304.8,3304.5,3.2078]
[1737895766561,0.60527,3304.8,3304.6,0.6053]
[1737895766745,0.60527,3304.8,3304.7,0.5148]
[1737895768853,3.81305,3304.9,3304.7,1.12008]
[1737895769153,3.2078,3304.9,3304.8,1.13097]
[1737895769354,0.60524,3305.0,3304.8,1.13097]
[1737895769861,0.60524,3305.0,3304.9,0.4822]
[1737895770060,0.00453611,3305.1,3304.9,3.69]
[1737895770360,0.00453611,3305.1,3305.0,0.60523]
[1737895770558,0.00453611,3305.1,3304.9,4.29524]
[1737895770759,0.60974611,3305.1,3304.9,4.29524]
[1737895771864,0.00453611,3305.1,3304.9,4.29524]
[1737895772765,0.00453611,3305.1,3305.0,0.60523]
[1737895775160,3.2078,3306.0,3304.9,3.69]
[1737895775466,3.2078,3306.0,3305.5,0.60512]
[1737895775667,0.60509,3305.8,3305.6,1.0001]
[1737895776266,0.6051,3305.7,3305.6,1.0001]
[1737895780857,0.00453611,3306.0,3305.6,1.0001]
[1737895780858,0.60509,3305.8,3305.6,1.60521]
[1737895781567,0.6051,3305.7,3305.6,1.0001]
[1737895781766,0.60509,3305.8,3305.6,1.60522]
[1737895781967,0.6051,3305.7,3305.6,1.0001]
[1737895782165,0.00453611,3306.0,3305.6,1.0001]
[1737895782365,0.60959611,3306.0,3305.7,0.6051]
[1737895783676,0.60958611,3306.0,3305.7,0.6051]
[1737895783872,0.60958611,3306.0,3305.6,1.0001]
[1737895784172,0.60958611,3306.0,3305.8,0.60508]
[1737895784569,0.60958611,3306.0,3305.9,0.4982]
[1737895785365,0.00453611,3306.0,3305.9,0.4982]
[1737895785571,0.00453611,3306.0,3305.9,1.10326]
[1737895811889,1.0095,3306.7,3306.6,0.60494]
[1737895818901,0.4827,3306.7,3306.6,0.60494]
[1737895824103,0.00297732,3307.0,3306.5,3.2078]
[1737895824293,1.49547732,3307.0,3306.5,3.2078]
[1737895824805,1.49547732,3307.0,3306.8,0.60489]
[1737895826207,0.60489,3306.9,3306.6,0.60493]
[1737895826403,0.6049,3306.8,3306.6,0.60493]
[1737895826602,0.6049,3306.8,3306.5,3.81274]
[1737895826793,0.6049,3306.8,3306.6,0.60493]
[1737895828105,0.6049,3306.8,3306.5,3.2078]
[1737895828303,0.6049,3306.8,3306.6,0.60493]
[1737895828807,1.49547732,3307.0,3306.5,3.2078]
[1737895829102,2.10035732,3307.0,3306.7,0.60491]
[1737895829304,2.10035732,3307.0,3306.5,3.2078]
[1737895829498,2.10035732,3307.0,3306.8,0.60489]
[1737895832504,2.10035732,3307.0,3306.7,0.60491]
[1737895833901,0.60488,3306.9,3306.7,0.60491]
[1737895834706,0.60489,3306.9,3306.6,1.09613]
[1737895835908,0.60494,3306.7,3306.5,3.2078]
[1737895836407,0.4923,3306.6,3306.5,3.2078]
[1737895837299,0.4923,3306.6,3306.5,3.81275]
[1737895840311,1.00467732,3307.0,3306.5,3.2078]
[1737895840515,0.60493,3306.7,3306.5,3.2078]
[1737895842018,0.60494,3306.6,3306.5,3.2078]
[1737895842810,0.5036,3306.9,3306.5,3.2078]
[1737895843003,0.60492,3306.7,3306.5,3.81275]
[1737895843211,0.60492,3306.7,3306.5,3.2078]
[1737895845400,0.60492,3306.7,3306.5,3.81275]
[1737895845807,0.5036,3306.9,3306.5,3.81275]
[1737895846111,0.60491,3306.8,3306.5,3.81275]
[1737895846410,0.60491,3306.8,3306.6,0.517]
[1737895848012,0.5036,3306.9,3306.6,0.517]
[1737895848611,0.60491,3306.8,3306.6,0.517]
[1737895849113,1.00467732,3307.0,3306.8,0.6049]
[1737895849504,0.51907732,3307.0,3306.9,0.60488]
[1737895849708,0.00297732,3307.0,3306.9,0.60488]
[1737895867633,3.2078,3307.7,3306.9,40.8]
[1737895867825,0.60476,3307.6,3307.3,0.60479]
[1737895868026,0.60476,3307.6,3307.4,1.0128]
[1737895868227,3.81254,3307.7,3307.4,1.61759]
[1737895868529,3.81254,3307.7,3307.4,1.61758]
[1737895868732,3.2078,3307.7,3307.4,1.0128]
[1737895869235,3.2078,3307.7,3307.5,0.60477]
[1737895869434,0.60474,3307.7,3307.4,1.61758]
[1737895870528,1.0182,3308.0,3307.4,1.0128]
[1737895870729,1.0182,3308.0,3307.5,1.12436]
[1737895870730,0.60472,3307.8,3307.5,1.12436]
[1737895871032,0.60472,3307.8,3307.5,0.5196]
[1737895871432,0.60472,3307.8,3307.5,1.12436]
[1737895872737,1.0182,3308.0,3307.5,1.12436]
[1737895873231,0.60475,3307.6,3307.5,0.5196]
[1737895874840,1.0182,3308.0,3307.5,0.5196]
[1737895875031,0.60475,3307.7,3307.5,0.5196]
[1737895875231,0.60475,3307.7,3307.5,1.12436]
[1737895875638,1.0182,3308.0,3307.5,0.5196]
[1737895875939,0.60475,3307.6,3307.5,0.5196]
[1737895882946,1.0182,3308.0,3307.2,3.2078]
[1737895883152,0.60481,3307.3,3307.2,3.2078]
[1737895883748,0.6048,3307.4,3307.2,3.2078]
[1737895883949,0.60478,3307.5,3307.2,3.81262]
[1737895884153,0.60478,3307.5,3307.3,0.4778]
[1737895886957,0.60479,3307.4,3307.3,0.4778]
[1737895887248,0.60478,3307.5,3307.3,0.4778]
[1737895888051,0.60477,3307.6,3307.3,1.0826]
[1737895888350,0.60478,3307.5,3307.3,0.4778]
[1737895888745,0.4759,3307.7,3307.3,0.4778]
[1737895888746,0.60476,3307.6,3307.4,0.4787]
[1737895888945,0.60477,3307.5,3307.4,0.4787]
[1737895889339,0.60477,3307.5,3307.4,0.9898]
[1737895889547,0.60477,3307.6,3307.4,0.9898]
[1737895889851,0.60477,3307.5,3307.4,0.9898]
[1737895891054,1.08065,3307.7,3307.4,1.59458]
[1737895891353,0.60476,3307.6,3307.4,0.9898]
[1737895892153,0.60476,3307.6,3307.4,1.59458]
[1737895892452,3.2078,3308.2,3307.4,0.9898]
[1737895892653,3.81245,3308.2,3307.9,0.60469]
[1737895892853,0.60466,3308.1,3308.0,1.47]
[1737895895155,3.81245,3308.2,3308.0,1.47]
[1737895895655,0.60466,3308.1,3308.0,1.47]
[1737895895856,3.81245,3308.2,3308.0,1.47]
[1737895896454,0.60465,3308.2,3308.0,1.47]
[1737895897053,4.7225,3308.5,3308.0,1.47]
[1737895897255,0.60465,3308.2,3308.0,1.47]
[1737895897658,4.7225,3308.5,3308.0,1.47]
[1737895897858,5.3271,3308.5,3308.2,0.60463]
[1737895898657,3.2078,3308.5,3308.0,1.47453611]
[1737895898847,3.81239,3308.5,3308.0,1.47453611]
[1737895899048,3.81239,3308.5,3308.2,0.60463]
[1737895899449,0.60461,3308.4,3308.1,0.60465]
[1737895899649,3.2078,3308.5,3308.2,0.60463]
[1737895899650,0.6046,3308.5,3308.2,0.60463]
[1737895899957,0.60455,3308.7,3308.3,0.60461]
[1737895900257,0.60458,3308.6,3308.4,0.516]
[1737895900756,0.60456,3308.7,3308.4,1.1206]
[1737895900958,2.12405,3308.8,3308.5,0.999]
[1737895901252,1.5195,3308.8,3308.5,0.999]
[1737895901450,0.60459,3308.5,3308.4,0.516]
[1737895903951,0.60462,3308.3,3308.2,3.2078]
[1737895904256,0.5217,3308.4,3308.2,3.2078]
[1737895904454,1.12632,3308.4,3308.2,3.2078]
[1737895904756,0.60462,3308.4,3308.2,3.2078]
[1737895905755,0.5217,3308.7,3308.2,3.2078]
[1737895905957,0.60462,3308.4,3308.2,3.2078]
[1737895909759,1.0217,3308.8,3308.2,3.2078]
[1737895909760,0.60458,3308.6,3308.2,3.2078]
[1737895909957,0.60458,3308.6,3308.3,0.60461]
[1737895910252,0.60456,3308.7,3308.4,1.0055]
[1737895910558,0.60456,3308.7,3308.4,2.0866]
[1737895910951,0.60457,3308.6,3308.4,1.482]
[1737895913553,1.0217,3308.8,3308.4,1.482]
[1737895913761,0.60457,3308.6,3308.4,1.482]
[1737895914058,0.60456,3308.7,3308.4,2.0866]
[1737895914559,0.60451,3308.9,3308.6,0.60457]
[1737895915356,0.60451,3308.9,3308.7,0.60454]
[1737895915754,0.60451,3308.9,3308.8,0.5258]
[1737895915958,0.60451,3308.9,3308.8,1.13033]
[1737895916257,3.727,3309.1,3308.8,1.13033]
[1737895916463,0.6045,3309.0,3308.8,1.13032]
[1737895916959,3.727,3309.1,3308.8,0.5258]
[1737895917155,0.9759,3309.5,3308.8,0.5258]
[1737895917156,0.60447,3309.2,3309.1,0.60447]
[1737895917651,0.60445,3309.3,3309.1,0.60447]
[1737895918158,0.60445,3309.3,3308.9,1.0045]
[1737895918159,0.60445,3309.3,3309.2,0.5258]
[1737895918866,0.9965,3309.5,3309.3,0.60443]
[1737895919162,0.60443,3309.4,3309.2,4.33805]
[1737895919364,0.60443,3309.4,3309.2,3.7336]
[1737895920057,0.60443,3309.4,3309.2,4.33805]
[1737895920561,0.60443,3309.4,3309.2,3.7336]
[1737895920767,0.60443,3309.4,3309.2,4.33806]
[1737895921063,0.60441,3309.5,3309.2,4.33805]
[1737895921659,1.4741,3309.9,3309.2,3.7336]
[1737895921960,0.60438,3309.7,3309.3,0.60443]
[1737895922164,1.4741,3309.9,3309.4,0.9763]
[1737895922762,0.60433,3310.0,3309.6,3.2078]
[1737895922957,0.60433,3310.0,3309.6,3.81218]
[1737895923259,0.60428,3310.2,3309.7,0.5208]
[1737895923561,0.60433,3310.0,3309.7,0.5208]
[1737895923764,0.60434,3309.9,3309.7,0.5208]
[1737895925261,0.60433,3310.0,3309.7,0.5208]
[1737895925661,0.60433,3309.9,3309.7,0.5208]
[1737895925861,0.60435,3309.8,3309.7,0.5208]
[1737895927265,0.60434,3309.9,3309.7,0.5208]
[1737895927664,0.9709,3310.2,3309.7,0.5208]
[1737895927868,0.60434,3309.9,3309.7,0.5208]
[1737895928172,0.60433,3310.0,3309.7,0.5208]
[1737895929365,0.9709,3310.2,3309.7,0.5208]
[1737895929673,0.60433,3310.0,3309.7,0.5208]
[1737895931067,0.60434,3309.9,3309.7,0.5208]
[1737895931276,0.9709,3310.2,3309.7,0.5208]
[1737895931769,0.60434,3309.9,3309.7,0.5208]
[1737895932773,0.9709,3310.2,3309.7,0.5208]
[1737895933070,0.60435,3309.8,3309.7,0.5208]
[1737895933666,0.9709,3310.2,3309.7,0.5208]
[1737895933872,0.60435,3309.8,3309.7,0.5208]
[1737895934766,0.9709,3310.2,3309.7,0.5208]
[1737895934971,0.60434,3309.9,3309.7,0.5208]
[1737895935571,0.60432,3310.0,3309.7,0.5208]
[1737895935973,0.60434,3309.9,3309.7,0.5208]
[1737895937478,0.60433,3310.0,3309.7,0.5208]
[1737895937680,0.60433,3309.9,3309.7,0.5208]
[1737895937878,0.9709,3310.2,3309.7,0.5208]
[1737895938283,0.60432,3310.0,3309.7,0.5208]
[1737895938582,0.60432,3310.0,3309.7,1.12516]
[1737895939581,0.60431,3310.1,3309.7,1.12516]
[1737895939883,0.60432,3310.0,3309.7,1.12516]
[1737895942187,0.60431,3310.1,3309.7,1.12516]
[1737895943684,0.60433,3310.0,3309.7,0.5208]
[1737895943886,0.60433,3310.0,3309.7,1.12516]
[1737895946493,0.60431,3310.1,3309.7,1.12516]
[1737895946694,0.60431,3310.1,3309.8,0.60435]
[1737895947203,0.60431,3310.1,3309.9,0.5207]
[1737895947500,0.60431,3310.1,3309.9,1.0119]
[1737895948593,0.60427,3310.3,3310.0,3.81211]
[1737895948794,1.5124,3310.7,3310.0,3.2078]
[1737895949001,0.60427,3310.3,3310.1,0.4877]
[1737895949498,1.5124,3310.7,3310.1,0.4877]
[1737895949698,0.60428,3310.2,3310.1,0.4877]
[1737895952302,0.6043,3310.1,3310.0,3.2078]
[1737895952504,1.599,3310.1,3310.0,3.2078]
[1737895953203,0.60437,3309.7,3309.6,3.21233611]
[1737895954802,4.16909359,3309.7,3309.6,0.00453611]
[1737895956897,3.56472359,3309.7,3309.2,3.2078]
[1737895957099,0.60444,3309.3,3309.2,3.2078]
[1737895966102,0.6045,3309.0,3308.9,0.00453611]
[1737895981709,0.6045,3309.0,3308.9,0.60905611]
[1737895983820,0.6045,3309.0,3308.9,0.00453611]
[1737895984013,0.6045,3309.0,3308.9,0.60904611]
[1737895984512,0.96076218,3309.0,3308.9,0.00453611]
[1737896001531,0.60461,3308.4,3308.3,3.2078]
[1737896001722,0.96087218,3308.4,3308.3,3.2078]
[1737896003327,0.60464,3308.2,3308.1,1.5091]
[1737896003626,0.96090218,3308.2,3308.1,1.5091]
[1737896007528,0.60464,3308.2,3308.1,1.5091]
[1737896014641,0.60464,3308.2,3308.1,2.11375]
[1737896019342,0.60464,3308.3,3308.2,0.60463]
[1737896019729,3.2078,3308.5,3308.1,1.5091]
[1737896019933,0.60462,3308.4,3308.3,0.60461]
[1737896020842,0.60464,3308.3,3308.2,0.60463]
[1737896028243,0.60461,3308.4,3308.3,0.60461]
[1737896028639,0.6046,3308.5,3308.4,0.60459]
[1737896029038,0.6046,3308.5,3308.1,4.7169]
[1737896029238,0.6046,3308.5,3308.3,0.60461]
[1737896029436,0.60461,3308.4,3308.3,0.60461]
[1737896032637,0.60459,3308.5,3308.3,0.60461]
[1737896034649,0.60455,3308.7,3308.6,0.60457]
[1737896036045,0.9735,3309.3,3308.6,3.2078]
[1737896036238,0.6045,3309.0,3308.8,0.60453]
[1737896039642,0.9735,3309.3,3308.7,0.9809]
[1737896039842,0.60453,3308.8,3308.7,0.9809]
[1737896040342,0.60453,3308.8,3308.7,0.4756]
[1737896044855,0.5051,3309.1,3308.6,3.6879]
[1737896044856,0.60455,3308.7,3308.6,3.2078]
[1737896045057,2.08905,3308.7,3308.6,3.2078]
[1737896052062,0.60462,3308.3,3308.2,3.81244]
[1737896052454,0.60462,3308.3,3308.2,3.2078]
[1737896052856,0.60462,3308.3,3308.2,3.81244]
[1737896053264,0.60462,3308.3,3308.2,3.2078]
[1737896054363,1.4845,3308.7,3308.2,3.2078]
[1737896054559,0.60462,3308.4,3308.3,0.9861]
[1737896058069,0.60462,3308.3,3308.2,3.2078]
[1737896060366,0.60462,3308.3,3308.1,4.29276]
[1737896060565,0.60464,3308.2,3308.1,4.29276]
[1737896061062,0.60454,3308.8,3308.6,0.60456]
[1737896061271,0.60452,3308.9,3308.7,2.08955]
[1737896061469,0.60451,3309.0,3308.8,0.60452]
[1737896062061,0.60449,3309.1,3308.9,0.60452]
[1737896062377,0.60448,3309.1,3308.9,0.60452]
[1737896062562,0.60448,3309.1,3308.8,0.60452]
[1737896063370,0.60448,3309.1,3308.9,0.60451]
[1737896066171,0.6045,3309.0,3308.9,0.60451]
[1737896066365,0.6045,3309.0,3308.8,0.60453]
[1737896066667,0.60449,3309.1,3308.9,0.60451]
[1737896067866,3.2078,3309.3,3308.7,1.485]
[1737896068067,0.60448,3309.1,3309.0,0.60448]
[1737896068274,3.2078,3309.3,3308.7,1.485]
[1737896068571,0.60449,3309.1,3308.9,0.6045]
[1737896068770,0.60449,3309.1,3308.7,1.485]
[1737896069163,0.60449,3309.1,3309.0,0.6045]
[1737896070067,0.60449,3309.1,3308.8,0.60453]
[1737896070273,0.60449,3309.1,3309.0,0.6045]
[1737896070473,0.60448,3309.2,3308.8,0.60453]
[1737896070675,0.60443,3309.4,3309.3,0.60444]
[1737896073277,0.60442,3309.5,3309.2,0.60446]
[1737896073479,0.60443,3309.4,3309.3,1.09683]
[1737896073972,0.00453611,3309.6,3309.3,0.4924]
[1737896074280,0.60442,3309.5,3309.4,0.60442]
[1737896074577,0.60442,3309.5,3309.3,0.4924]
[1737896074780,0.60442,3309.5,3309.4,0.60442]
[1737896076788,0.60442,3309.4,3309.3,0.4924]
[1737896077082,0.00453611,3309.6,3309.1,0.5236]
[1737896077278,0.60446,3309.2,3309.1,0.5236]
[1737896080886,1.51554611,3309.6,3309.1,0.5236]
[1737896080887,0.00453611,3309.6,3309.1,0.5236]
[1737896081088,0.00453611,3309.6,3309.2,0.60446]
[1737896081384,0.60443,3309.4,3309.3,1.0491]
[1737896084286,3.2078,3309.4,3308.5,3.2078]
[1737896084492,1.533,3309.3,3308.5,3.2078]
[1737896084793,0.60457,3308.6,3308.5,3.2078]
[1737896098293,0.60464,3308.2,3308.1,3.2078]
[1737896102501,0.60466,3308.1,3308.0,3.70563611]
[1737896110005,0.60466,3308.1,3308.0,44.50563611]
[1737896110304,0.60466,3308.1,3308.0,45.11031611]
[1737896110504,0.60466,3308.1,3308.0,44.50563611]
[1737896112702,0.60466,3308.1,3308.0,3.70563611]
[1737896114396,0.60466,3308.2,3308.0,4.31031611]
[1737896116002,1.51143,3308.6,3308.0,4.31031611]
[1737896116205,0.60466,3308.1,3308.0,4.31031611]
[1737896116398,0.60466,3308.2,3308.0,4.31031611]
[1737896117000,0.5094,3309.0,3308.0,4.31031611]
[1737896117001,0.60453,3308.9,3308.7,0.60455]
[1737896117198,0.60453,3308.9,3308.8,1.4795]
[1737896120411,0.6045,3309.0,3308.8,2.08403]
[1737896123412,0.60448,3309.2,3308.9,0.6045]
[1737896123617,0.60448,3309.2,3309.0,0.60449]
[1737896124910,0.60448,3309.2,3308.8,1.4795]
[1737896125110,0.60449,3309.1,3308.9,0.60451]
[1737896125319,0.60452,3308.9,3308.8,1.4795]
[1737896129512,0.4856,3309.2,3308.8,1.4795]
[1737896129819,0.6045,3309.0,3308.9,0.60451]